Cogmind - Beta 15 @@@ ROGUE MODE // 2025.06.22 @ 07:49:51 Player: CheifClapdad Result: Destroyed by 22-VCY(R) with Subdweller Beam Cannon Performance ------------- Evolutions (0) 0 Regions Visited (2) 400 Robots Destroyed (13) 65 Value Destroyed (366) 366 Prototype IDs (2) 40 Alien Tech Used (0) 0 Bonus (0) 0 TOTAL SCORE: 871 Bonus ------- None Cogmind --------- Core Integrity 0/250 Matter 272/300 Energy 125/125 System Corruption 0% Temperature Cool (9) Movement Core (550) Ox10 Location -10/Subcaves Parts ------- > --- POWER (1) -------- Light Ion Engine > --- PROPULSION (2) --- (None) > --- UTILITY (2) ------ Large Storage Unit Medium Armor Plating > --- WEAPON (2) ------- Light Assault Rifle Mini Grenade Launcher > --- INVENTORY (15) --- Light Ion Engine Light Ion Engine Light Treads Wheel Compact Wheel Improved Heat Sink Large Matter Pod (150) Medium Armor Plating Medium Armor Plating Medium Armor Plating Grenade Launcher Grenade Launcher Mini Grenade Launcher Peak State ------------ > --- POWER ------------ Light Ion Engine > --- PROPULSION ------- Light Treads Wheel > --- UTILITY ---------- Improved Heat Sink Large Storage Unit > --- WEAPON ----------- Assault Rifle Light Assault Rifle > --- INVENTORY -------- Light Ion Engine Light Ion Engine Light Ion Engine Light Ion Engine Light Treads Wheel Compact Wheel Large Matter Pod Grenade Launcher Grenade Launcher [Rating: 10] Favorites ----------- Power Light Ion Engine Engine Light Ion Engine Propulsion Light Treads Treads Light Treads Wheel Wheel Utility Large Storage Unit Device Improved Heat Sink Storage Large Storage Unit Protection Medium Armor Plating Weapon Assault Rifle Ballistic Gun Assault Rifle Launcher Mini Grenade Launcher Build | -11 -10 -10 ------- Run | Yrd Mat Sub Slots Evolved . | . . . Power . | . . . Propulsion . | . . . Utility . | . . . Weapon . | . . . Parts Attached 13 | 6 5 2 Power 2 | 1 1 . Engine 2 | 1 1 . Core . | . . . Reactor . | . . . Propulsion 2 | 2 . . Treads 1 | 1 . . Leg . | . . . Wheel 1 | 1 . . Hover . | . . . Flight . | . . . Utility 4 | 1 2 1 Device 1 | . 1 . Storage 2 | 1 1 . Processor . | . . . Hackware . | . . . Protection 1 | . . 1 Artifact . | . . . Weapon 5 | 2 2 1 Energy Gun . | . . . Energy Cannon . | . . . Ballistic Gun 3 | 2 1 . Ballistic Cannon . | . . . Launcher 2 | . 1 1 Special Weapon . | . . . Impact Weapon . | . . . Slashing Weapon . | . . . Piercing Weapon . | . . . Special Melee Weapon . | . . . Unidentified Prototypes . | . . . Parts Lost 4 | . 2 2 Power . | . . . Propulsion 2 | . . 2 Utility . | . . . Weapon 2 | . 2 . Highest Loss Streak 2 | . 1 2 To Critical Strikes . | . . . Average Backups 8 | 4 8 13 Power 1 | 1 2 2 Propulsion 2 | 2 3 3 Utility 1 | . 1 5 Weapon 2 | . 2 3 Tool/Special . | . . . Unused Backups 13 | . 2 11 Power 3 | . 1 2 Propulsion 4 | . 1 3 Utility 4 | . . 4 Weapon 2 | . . 2 Tool/Special . | . . . Average Slot Usage (%) 89 | . 88 97 Engine 14 | . 14 14 Treads 13 | . 14 13 Wheel 13 | . 14 13 Device 8 | . 9 . Storage 14 | . 14 14 Protection 1 | . . 14 Ballistic Gun 20 | . 21 14 Launcher 1 | . . 13 Peak Build Rating 10 | 6 10 10 Average Rating 7 | 5 7 9 On Entrance 5 | . 6 10 Naked Turns . | . . . Heaviest Build 32 | 12 28 32 Greatest Support 20 | 20 20 10 Greatest Overweight (x) 3 | 1 2 3 Average Overweight (x) 1 | . . 3 Largest Inventory Capacity 15 | 8 15 15 Average Capacity 12 | 7 12 15 Most Carried 14 | 6 14 14 Average Carried 8 | 4 8 13 Final Capacity 15 | 8 15 15 Final Carried 14 | 6 14 13 Class Distribution -------------------- 100% | Mutant Dominant Class ---------------- Mutant | -10/Materials Mutant | -10/Subcaves Resources | -11 -10 -10 ----------- Run | Yrd Mat Sub Matter Collected 751 | 278 453 20 Remotely . | . . . Salvage Created 437 | 79 335 23 Parts 22 | 3 19 . Haulers Intercepted . | . . . Recyclers Shooed 1 | . 1 . Parts Field Recycled . | . . . Retrieved Matter . | . . . Parts Self-Destructed . | . . . Prevented . | . . . Kills | -11 -10 -10 ------- Run | Yrd Mat Sub Combat Hostiles Destroyed 11 | . 10 1 Guns 10 | . 10 . AOE 1 | . . 1 Classes Destroyed 5 | 1 3 1 Recycler 1 | 1 . . Operator 1 | . 1 . Swarmer 3 | . 3 . Grunt 7 | . 7 . Subdweller 1 | . . 1 Best Kill Streak 3 | 1 3 1 Combat Bots Only 3 | . 3 1 Max Kills in Single Turn 1 | 1 1 1 Gunslinging . | . . . Exploded 1 | . . 1 Melee . | . . . Uniques/NPCs Destroyed . | . . . Combat | -11 -10 -10 -------- Run | Yrd Mat Sub Hostile Shots Fired 88 | . 83 5 Missed 23 | . 23 . Hits 65 | . 60 5 Projectile 65 | . 60 5 AOE 1 | . . 1 Critical Strikes 2 | . 2 . Damage Taken 936 | . 677 259 Core 251 | . 163 88 Absorbed by Shields . | . . . Core Remaining (%) 100 | 100 . . Volleys Fired 56 | 3 50 3 Largest 2 | 2 2 2 Hottest 50 | 40 50 50 Shots Fired 103 | 6 91 6 Gun 98 | 6 89 3 Cannon . | . . . Launcher 5 | . 2 3 Special . | . . . Kinetic 98 | 6 89 3 Thermal . | . . . Explosive 5 | . 2 3 Electromagnetic . | . . . Robot Hit Streak 13 | 5 13 4 Robot Miss Streak 5 | . 5 1 Penetration Max . | . . . Secondary Targets 4 | . 4 . Max Gunslinging Chain 1 | . 1 . Shots Hit Robots 66 | 5 56 5 Core Hits 28 | 2 24 2 Critical Kills . | . . . Critical Parts Destroyed . | . . . Critical Strikes . | . . . Melee Attacks . | . . . Impact . | . . . Slashing . | . . . Piercing . | . . . Sneak Attacks . | . . . Combat Hostiles . | . . . Follow-up Attacks . | . . . Damage Inflicted 1028 | 65 745 218 Guns 742 | 65 651 26 Cannons . | . . . Explosions 286 | . 94 192 Melee . | . . . Ramming . | . . . Kinetic 742 | 65 651 26 Thermal . | . . . Explosive 286 | . 94 192 Electromagnetic . | . . . Impact . | . . . Slashing . | . . . Piercing . | . . . Highest Corruption . | . . . Average Corruption . | . . . Corruption Purged . | . . . Corruption Blocked . | . . . Overload Shots . | . . . Overflow Damage 22 | . . 22 Projectiles . | . . . Explosions 22 | . . 22 Melee . | . . . Knockbacks . | . . . Impact . | . . . Kinetic . | . . . Secondary . | . . . Self-Inflicted Damage 112 | . . 112 Shots 3 | . . 3 Rammed . | . . . Targets Rammed . | . . . Kicked . | . . . Crushed . | . . . Highest Temperature 27 | . 27 . Average Temperature 8 | . 8 . Received Heat Transfer 327 | . 318 9 Siege Activations . | . . . Martial Activations . | . . . Shielding Activations . | . . . Robots Disrupted . | . . . Combat Hostiles . | . . . Robots Corrupted . | . . . Combat Hostiles . | . . . Parts Fried . | . . . Impact Corruptions . | . . . Robots Melted . | . . . Combat Hostiles . | . . . Parts Melted . | . . . Heat Transferred . | . . . Parts Sabotaged . | . . . Parts Stolen . | . . . Parts Stripped . | . . . Power Chain Reactions . | . . . Alert | -11 -10 -10 ------- Run | Yrd Mat Sub Maximum Alert Level . | . . . Low Security (%) 100 | 100 100 . Level 1 . | . . . Level 2 . | . . . Level 3 . | . . . Level 4 . | . . . Level 5 . | . . . High Security . | . . . Max Security . | . . . Peak Influence 94 | . 94 . Initial . | . . . Average 14 | . 16 . Influence Increases 274 | 5 269 . Destroy 0b10 Robot/C 200 | . 200 . Destroy 0b10 Robot/NC 10 | 5 5 . Destroy Leader 40 | . 40 . Disable Machine 15 | . 15 . Destroy Structure 9 | . 9 . Influence Decreases 274 | 5 269 . Time Decay 260 | 5 255 . Lost Part 14 | . 14 . Squads Dispatched 1 | . 1 . Investigation 1 | . 1 . Extermination . | . . . Reinforcement . | . . . Assault . | . . . Garrison . | . . . Intercept . | . . . Searches Triggered . | . . . Construction Impeded . | . . . Haulers Reinforced . | . . . Active Scanning Responses . | . . . Cargo Convoy Interrupts . | . . . Stealth | -11 -10 -10 --------- Run | Yrd Mat Sub Distress Signals 2 | . 2 . Communications Jammed . | . . . Distress Signals . | . . . Times Spotted 25 | . 22 3 Peak Tracking Total 4 | . 4 2 Tactical Retreats . | . . . Traps | -11 -10 -10 ------- Run | Yrd Mat Sub Traps Triggered 1 | . 1 . Indirectly . | . . . Trap Hack Attempts . | . . . Triggered . | . . . Disarmed . | . . . Reprogrammed . | . . . Reused . | . . . Traps Extracted . | . . . Installed . | . . . Triggered . | . . . Machines | -11 -10 -10 ---------- Run | Yrd Mat Sub Machines Disabled 1 | . 1 . Max in Single Turn 1 | . 1 . Machines Repaired . | . . . Machines Dismantled . | . . . Machines Sabotaged . | . . . Overloaded Fab Kills . | . . . Hacking | -11 -10 -10 --------- Run | Yrd Mat Sub Machines Accessed 1 | . 1 . Terminals 1 | . 1 . Fabricators . | . . . Repair Stations . | . . . Recycling Units . | . . . Scanalyzers . | . . . Garrison Access . | . . . Total Hacks 3 | . 3 . Successful 1 | . 1 . Failed 2 | . 2 . Catastrophic 2 | . 2 . Database Lockouts . | . . . Manual 2 | . 2 . Terminals 3 | . 3 . Fabricators . | . . . Repair Stations . | . . . Recycling Units . | . . . Scanalyzers . | . . . Garrison Access . | . . . Terminal Hacks 1 | . 1 . Prototype ID Bank 1 | . 1 . Fabricator Hacks . | . . . Repair Station Hacks . | . . . Recycling Unit Hacks . | . . . Scanalyzer . | . . . Garrison Access Hacks . | . . . Unauthorized Hacks . | . . . Terminals . | . . . Fabricators . | . . . Repair Stations . | . . . Recycling Units . | . . . Scanalyzers . | . . . Garrison Access . | . . . Data Cores Recovered 1 | . 1 . Used . | . . . Hacking Detections 1 | . 1 . Full Trace Events 1 | . 1 . Feedback Events . | . . . Feedback Blocked . | . . . Robot Schematics Acquired . | . . . Robots Built . | . . . Authchips . | . . . Time . | . . . Total Robot Build Rating . | . . . Part Schematics Acquired . | . . . Parts Built . | . . . Authchips . | . . . Time . | . . . Total Part Build Rating . | . . . Parts Repaired . | . . . Time . | . . . Parts Recycled . | . . . Recycled Matter . | . . . Retrieved Matter . | . . . Retrieved Components . | . . . Parts Scanalyzed . | . . . Part Schematics Acquired . | . . . Parts Damaged . | . . . Bothacking | -11 -10 -10 ------------ Run | Yrd Mat Sub Used RIF Installer . | . . . Robots Hacked . | . . . Non-combat . | . . . Combat . | . . . Robot Hacks Applied . | . . . Relay Couplers Released . | . . . Fabnet Peak Effective % . | . . . Robots Rewired . | . . . Allies Hacked . | . . . Hacks Repelled . | . . . Allies | -11 -10 -10 -------- Run | Yrd Mat Sub Total Allies . | . . . Largest Group . | . . . Highest-Rated Group . | . . . Highest-Rated Ally . | . . . Total Orders . | . . . Ally Attacks . | . . . Total Damage . | . . . Kills . | . . . Allies Corrupted . | . . . Allies Melted . | . . . Intel | -11 -10 -10 ------- Run | Yrd Mat Sub Active Infowar (turns) . | . . . Robot Analysis Total . | . . . Derelict Logs Recovered . | . . . Drone Launches . | . . . Drone Recoveries . | . . . Exploration | -11 -10 -10 ------------- Run | Yrd Mat Sub Turns Passed 1740 | 257 1284 199 Spaces Moved 882 | 145 586 151 Core 8 | 8 . . Treads 478 | 5 473 . Legs . | . . . Wheels 396 | 132 113 151 Hover . | . . . Flight . | . . . Fastest Speed 50 | 50 95 125 Average Speed 161 | 93 187 125 Slowest Speed 240 | 160 240 125 Overloaded Moves . | . . . Propulsion Burnouts . | . . . Robots Hopped . | . . . Potential Cave-ins . | . . . Cave-ins Triggered . | . . . Exploration Rate (%) 31 | 8 75 10 Regions Visited 2 Branch Regions 1 Pre-discovered Areas . | . . . Known Exits Taken . | . . . Unknown Exits Taken 2 | 1 1 . Scrap Searched . | . . . Spaces Dug . | . . . Terrain Destroyed 31 | . 11 20 Melee . | . . . Projectile . | . . . AOE 31 | . 11 20 Terrain Rammed . | . . . Walls Destroyed . | . . . Machines Disabled . | . . . Actions | -11 -10 -10 --------- Run | Yrd Mat Sub Total 1099 | 257 686 156 Wait 128 | 98 30 . Move 880 | 144 585 151 Hop . | . . . Pick Up 17 | 6 11 . Fast Attach 7 | 6 1 . Attach 3 | . 2 1 Detach 1 | . 1 . Swap 3 | . 2 1 Drop 4 | . 4 . Fire 56 | 3 50 3 Melee . | . . . Ram . | . . . Kick . | . . . Crush . | . . . Escape Stasis . | . . . Rewire . | . . . Trap . | . . . Miscellaneous . | . . . Route ------- -11/Scrapyard -10/Materials (discovered 4 exits: [*Mat x2] / [*Min] / [*Sub]) -10/Subcaves History --------- Turn | Location | Event 4 | -11/Scrapyard | Discovered new exit (range 15) 258 | -11/Scrapyard | Entered Materials 316 | -10/Materials | Build established: Mutant 523 | -10/Materials | Discovered new exit (range 5) 851 | -10/Materials | Core integrity fell below 50% 872 | -10/Materials | Discovered new exit (range 12) 1202 | -10/Materials | Discovered new exit (range 12) 1405 | -10/Materials | Discovered new exit (range 11) 1542 | -10/Materials | Entered Subcaves 1733 | -10/Subcaves | Ambushed by Subdweller buried in earth 1739 | -10/Subcaves | Ambushed by Subdweller buried in earth 1740 | -10/Subcaves | Core integrity fell below 20% 1741 | -10/Subcaves | Destroyed by 22-VCY(R) with Subdweller Beam Cannon Last Messages --------------- 01055_ The unstable cave ceiling collapses. 01055_ K-01 Serf crushed by falling debris. 01055_ K-01 Serf destroyed. 01055_ U-05 Engineer lays Concrete. 01202_ EXIT=FOUND 01294_ Acquired Med. Armor Plating. 01307_ Acquired Mni. Grenade Launcher. 01405_ EXIT=FOUND 01456_ Acquired 151 matter. LOCATION=UNKNOWN AMBIENT_HEAT=-10 GOAL=ESCAPE 01551_ Acquired 9 matter. 01701_ Acquired 11 matter. 01733_ Wheel destroyed. 01734_ VE-IM6(R): "ARGHSUB!" 01739_ VE-IM6(R) destroyed. 01739_ Lgt. Treads destroyed. 01739_ Destroyed Lgt. Treads. 01740_ 22-VCY(R): "ARGHSUB!" Map ----- +----------------------------------------------------+ | ?????????????????????????????????????????????????? | | ?????????????????????????????????????????????????? | | ?????????????????????????????????????????????????? | | ?????????????????????????????????????????????????? | | ?????????????????????????????????????????????????? | | ?????????????????????????????????????????????????? | | ?????????????????????????????????????????????????? | | ?????????????????????????????????????????????????? | | ?????????????????????????????????????????????????? | | ?????????????????????????????????????????????????? | | ?????????????????????????????????????????????????? | | ?????????????????????????????????????????????????? | | ?????????????????????????????????????????????????? | | ?????????????????????????????????????????????????? | | ?????????????????????????????????????????????????? | | ?????????????????????????????????#???????????????? | | ???????????????????????????????? #???????????????? | | ??????????????????????????????? ????????????????? | | ??????????????????????????????# #????????????????? | | ????????????????????????###### %##???????????????? | | ???????????????????????## % ????????????????? | | ?????????????????????### ?????????????????? | | ????????????????????## # #????????????????? | | ????????????????????#; R ##???????????????? | | ???????????????######; &%& #???????????????? | | ???????????##### % @ ????????? | | ??????????## % R # ##???????????? | | ??????????# ## ## # # % #????????????????? | | ??????????# ??##### # ## % ??????????????? | | ??????????? ##?# #####?? * %???????????? | | ??????????## #?# % # #??????? % ??????????? | | ??????????# #?# ####???????? ### ??????????? | | ?????????## #### ###?????????? #?????????????? | | ?????????# % #???????????? #????????????? | | ??????????# ##????????????? ???????????? | | ???????#### % %##???????????????????????????? | | ?????### % ##????????????????????????????? | | ?????# #" ######?????????????????????????????? | | ?????# ##??????????????????????????????????? | | ?????# #" ##???????????????????????????????????? | | ???? "## ####??????????????????????????????????? | | ???###??# ## ##?????????????????????????????????? | | ????????# ##????????????????????????????????? | | ????????# ##???????????????????????????????? | | ????????# #???????????????????????????????? | | ????????# #???????????????????????????????? | | ????????## ##???????????????????????????????? | | ?????????## ##????????????????????????????????? | | ??????????## #?????????????????????????????????? | | ??????????## #?????????????????????????????????? | +----------------------------------------------------+ Best States ------------- Heat Dissipation 39 Energy Generation 10 Energy Capacity 125 Matter Stores 300 Matter Capacity 300 Sight Range 16 Terrain Scan Density 10 Armor Coverage 225 Evasion (%) 44 Recoil Reduction 1 Item Schematics ----------------- None Robot Schematics ------------------ None Fabricated ------------ Nothing Repaired ---------- Nothing Alien Tech Used ----------------- None Achievements -------------- None Challenges ------------ None Game ------ Seed MediumPulseCharge Manual? 0 Play Time 00:07:02 Cumulative 86.0 hours Start 2025.06.22 @ 07:41:19 End 2025.06.22 @ 07:49:51 Sessions 1 Manual Loads 0 Difficulty Rogue Special Mode None Game No. 115 Rogue 115 Adventurer 0 Explorer 0 Win Type - Total 1 Types 1/0/0/0/0/0/0/0/0/0 Lore% 35 Gallery% 48 Achievement% 41 Wizard Run 0 Options --------- Layout 1 ASCII 0 Keyboard 0 Movement Arrows Keybinds 0 Fullscreen 1 Font 24/Smallcaps Map View 50x35 Zoom Use 0% Tactical HUD 1 Map Filters NONE Filters NONE Steam X RUN: e123900a-e62c-4fa2-ba55-b997b91d5e6e